[Event "Early-Titled-Tuesday-Blitz-September-26-2023"]
[Site "Chess.com"]
[Date "2023.09.26"]
[Round "11"]
[White "nicholas_ilic"]
[Black "emeli_chess"]
[Result "0-1"]
[WhiteElo "2235"]
[BlackElo "2359"]
[TimeControl "180+1"]
[EndTime "10:06:16 PDT"]
[Termination "emeli_chess won by checkmate"]

1. e4 {[%clk 0:03:00.9]} 1... c5 {[%clk 0:02:59.4]} 2. b3 {[%clk 0:02:59.2]}
2... d5 {[%clk 0:02:59.1]} 3. Bb2 {[%clk 0:03:00.1]} 3... d4 {[%clk 0:02:52.2]}
4. g3 {[%clk 0:02:59]} 4... e5 {[%clk 0:02:51.8]} 5. Bg2 {[%clk 0:02:59.9]} 5...
Nc6 {[%clk 0:02:51.1]} 6. Ne2 {[%clk 0:03:00.5]} 6... Be6 {[%clk 0:02:42.3]} 7.
O-O {[%clk 0:02:59.9]} 7... Qd7 {[%clk 0:02:42.1]} 8. d3 {[%clk 0:03:00]} 8...
Bh3 {[%clk 0:02:40.5]} 9. Nd2 {[%clk 0:03:00.9]} 9... h5 {[%clk 0:02:38.3]} 10.
f4 {[%clk 0:03:00.2]} 10... Bxg2 {[%clk 0:02:35.7]} 11. Kxg2 {[%clk 0:03:00.1]}
11... h4 {[%clk 0:02:35.7]} 12. f5 {[%clk 0:03:00.4]} 12... hxg3 {[%clk
0:02:29.8]} 13. Nxg3 {[%clk 0:03:01.3]} 13... Be7 {[%clk 0:02:22.9]} 14. Nf3
{[%clk 0:03:01.3]} 14... Bh4 {[%clk 0:02:20.7]} 15. Nxh4 {[%clk 0:02:55.8]}
15... Rxh4 {[%clk 0:02:20]} 16. Bc1 {[%clk 0:02:51.8]} 16... f6 {[%clk
0:02:16.6]} 17. Bd2 {[%clk 0:02:47.8]} 17... O-O-O {[%clk 0:02:13.9]} 18. a3
{[%clk 0:02:47.4]} 18... Nge7 {[%clk 0:02:12.8]} 19. b4 {[%clk 0:02:47]} 19...
Rdh8 {[%clk 0:01:51.2]} 20. Rh1 {[%clk 0:02:45]} 20... g6 {[%clk 0:01:41.8]} 21.
Qf3 {[%clk 0:02:43.5]} 21... gxf5 {[%clk 0:01:39.9]} 22. exf5 {[%clk 0:02:44.4]}
22... cxb4 {[%clk 0:01:23]} 23. axb4 {[%clk 0:02:44]} 23... a6 {[%clk
0:01:22.8]} 24. Rab1 {[%clk 0:01:38.2]} 24... Nd5 {[%clk 0:01:19]} 25. b5 {[%clk
0:01:36.1]} 25... axb5 {[%clk 0:01:18.9]} 26. Rxb5 {[%clk 0:01:35.3]} 26... Nf4+
{[%clk 0:01:19.1]} 27. Bxf4 {[%clk 0:01:33]} 27... Rxf4 {[%clk 0:01:19]} 28. Qe2
{[%clk 0:01:26]} 28... Ne7 {[%clk 0:01:07.6]} 29. Rhb1 {[%clk 0:01:22.1]} 29...
Nxf5 {[%clk 0:01:03.9]} 30. Rxb7 {[%clk 0:01:14.7]} 30... Qxb7+ {[%clk
0:00:49.5]} 31. Rxb7 {[%clk 0:01:13.7]} 31... Ne3+ {[%clk 0:00:49.7]} 32. Kg1
{[%clk 0:00:57]} 32... Kxb7 {[%clk 0:00:49.1]} 33. c4 {[%clk 0:00:56.2]} 33...
Rg8 {[%clk 0:00:46.3]} 34. c5 {[%clk 0:00:52.6]} 34... Rf1+ {[%clk 0:00:42.6]}
35. Qxf1 {[%clk 0:00:42]} 35... Nxf1 {[%clk 0:00:42]} 36. Kxf1 {[%clk
0:00:42.9]} 36... Kc6 {[%clk 0:00:38.5]} 37. Kf2 {[%clk 0:00:29.7]} 37... Rxg3
{[%clk 0:00:32.9]} 38. Kxg3 {[%clk 0:00:26.7]} 38... Kxc5 {[%clk 0:00:31.9]} 39.
h4 {[%clk 0:00:20.5]} 39... Kd5 {[%clk 0:00:30.6]} 40. h5 {[%clk 0:00:15.1]}
40... Ke6 {[%clk 0:00:30.7]} 41. Kg4 {[%clk 0:00:07.6]} 41... Kf7 {[%clk
0:00:30.8]} 42. Kf5 {[%clk 0:00:07.1]} 42... Kg7 {[%clk 0:00:29]} 43. h6+ {[%clk
0:00:01.8]} 43... Kxh6 {[%clk 0:00:28.7]} 44. Kxf6 {[%clk 0:00:02.7]} 44... e4
{[%clk 0:00:29]} 45. dxe4 {[%clk 0:00:03.3]} 45... d3 {[%clk 0:00:29.3]} 46. e5
{[%clk 0:00:04.2]} 46... d2 {[%clk 0:00:29.8]} 47. e6 {[%clk 0:00:05.1]} 47...
d1=Q {[%clk 0:00:30.2]} 48. e7 {[%clk 0:00:05.9]} 48... Qf3+ {[%clk 0:00:30.1]}
49. Ke6 {[%clk 0:00:06.3]} 49... Qe4+ {[%clk 0:00:30.2]} 50. Kd7 {[%clk
0:00:06.6]} 50... Qd5+ {[%clk 0:00:30.4]} 51. Ke8 {[%clk 0:00:06.7]} 51... Kg6
{[%clk 0:00:26.6]} 52. Kf8 {[%clk 0:00:05.8]} 52... Qd6 {[%clk 0:00:26.2]} 53.
Ke8 {[%clk 0:00:04.8]} 53... Kf6 {[%clk 0:00:25.2]} 54. Kf8 {[%clk 0:00:04.7]}
54... Qxe7+ {[%clk 0:00:25.6]} 55. Kg8 {[%clk 0:00:05.6]} 55... Qg7# {[%clk
0:00:25.9]} 0-1

[Event "Early-Titled-Tuesday-Blitz-September-26-2023"]
[Site "Chess.com"]
[Date "2023.09.26"]
[Round "11"]
[White "Hasangatin_Ramil"]
[Black "Hrant_ChessMood"]
[Result "0-1"]
[WhiteElo "2735"]
[BlackElo "2909"]
[TimeControl "180+1"]
[EndTime "10:06:18 PDT"]
[Termination "Hrant_ChessMood won on time"]

1. e4 {[%clk 0:02:51.6]} 1... c5 {[%clk 0:02:54.6]} 2. Nf3 {[%clk 0:02:51.7]}
2... Nc6 {[%clk 0:02:53.1]} 3. Bb5 {[%clk 0:02:50.6]} 3... e6 {[%clk 0:02:53.6]}
4. Bxc6 {[%clk 0:02:50.4]} 4... bxc6 {[%clk 0:02:52.8]} 5. d3 {[%clk 0:02:50.7]}
5... Ne7 {[%clk 0:02:48.9]} 6. Qe2 {[%clk 0:02:50.4]} 6... Ng6 {[%clk
0:02:47.4]} 7. h4 {[%clk 0:02:50.3]} 7... h5 {[%clk 0:02:42.8]} 8. e5 {[%clk
0:02:50.4]} 8... d6 {[%clk 0:02:36.1]} 9. Nc3 {[%clk 0:02:38.2]} 9... dxe5
{[%clk 0:02:27.1]} 10. Nxe5 {[%clk 0:02:36.9]} 10... Nxe5 {[%clk 0:02:27.9]} 11.
Qxe5 {[%clk 0:02:36.7]} 11... Qd4 {[%clk 0:02:27.7]} 12. Bf4 {[%clk 0:02:20.7]}
12... f6 {[%clk 0:02:20.8]} 13. Qe4 {[%clk 0:02:19.9]} 13... Qxe4+ {[%clk
0:01:58.6]} 14. dxe4 {[%clk 0:02:15.2]} 14... e5 {[%clk 0:01:59.5]} 15. Be3
{[%clk 0:02:14.9]} 15... Be6 {[%clk 0:01:57]} 16. Na4 {[%clk 0:02:10.4]} 16...
c4 {[%clk 0:01:48.6]} 17. Bc5 {[%clk 0:02:09.7]} 17... Rb8 {[%clk 0:01:44.1]}
18. Bxf8 {[%clk 0:02:07.6]} 18... Rxf8 {[%clk 0:01:44.2]} 19. O-O-O {[%clk
0:02:05]} 19... Ke7 {[%clk 0:01:43.6]} 20. Rhe1 {[%clk 0:02:03.3]} 20... Rb5
{[%clk 0:01:42.4]} 21. Re3 {[%clk 0:01:55.7]} 21... Rfb8 {[%clk 0:01:41.3]} 22.
Ra3 {[%clk 0:01:48.7]} 22... g5 {[%clk 0:01:34.7]} 23. Rh1 {[%clk 0:01:46.3]}
23... g4 {[%clk 0:01:29.4]} 24. Rd1 {[%clk 0:01:43.2]} 24... a5 {[%clk 0:01:21]}
25. Nc3 {[%clk 0:01:31.1]} 25... Rxb2 {[%clk 0:01:18.1]} 26. Rxa5 {[%clk
0:01:30.5]} 26... R2b7 {[%clk 0:01:17.6]} 27. Rc5 {[%clk 0:01:16.8]} 27... Rb6
{[%clk 0:01:17]} 28. Ra5 {[%clk 0:01:12.3]} 28... R6b7 {[%clk 0:01:15.4]} 29.
Rd2 {[%clk 0:01:11.3]} 29... Rf8 {[%clk 0:01:09.3]} 30. g3 {[%clk 0:01:08.2]}
30... Rf7 {[%clk 0:01:00.7]} 31. Ra8 {[%clk 0:01:05.2]} 31... f5 {[%clk
0:01:00.6]} 32. Ra5 {[%clk 0:01:00.1]} 32... f4 {[%clk 0:00:51.1]} 33. Rxe5
{[%clk 0:00:57.1]} 33... fxg3 {[%clk 0:00:51.2]} 34. fxg3 {[%clk 0:00:56.6]}
34... Rf1+ {[%clk 0:00:51.8]} 35. Rd1 {[%clk 0:00:51.4]} 35... Rf3 {[%clk
0:00:49.6]} 36. Ne2 {[%clk 0:00:47.6]} 36... Rb5 {[%clk 0:00:39.2]} 37. Rxb5
{[%clk 0:00:20.6]} 37... cxb5 {[%clk 0:00:40.1]} 38. Rg1 {[%clk 0:00:19.3]}
38... Re3 {[%clk 0:00:29.7]} 39. Nd4 {[%clk 0:00:15.7]} 39... Bd7 {[%clk
0:00:29.2]} 40. Nf5+ {[%clk 0:00:14.4]} 40... Bxf5 {[%clk 0:00:28.2]} 41. exf5
{[%clk 0:00:15.3]} 41... c3 {[%clk 0:00:26.5]} 42. a3 {[%clk 0:00:12.7]} 42...
Kf6 {[%clk 0:00:25.8]} 43. Kb1 {[%clk 0:00:12.8]} 43... Re2 {[%clk 0:00:23.8]}
44. Ka2 {[%clk 0:00:12.6]} 44... Rxc2+ {[%clk 0:00:20]} 45. Kb3 {[%clk
0:00:13.5]} 45... Rf2 {[%clk 0:00:19.1]} 46. Kxc3 {[%clk 0:00:13.5]} 46... Rf3+
{[%clk 0:00:19.1]} 47. Kb4 {[%clk 0:00:13.6]} 47... Kxf5 {[%clk 0:00:20]} 48.
Rc1 {[%clk 0:00:11.8]} 48... Rxg3 {[%clk 0:00:19.4]} 49. Rc5+ {[%clk 0:00:11.7]}
49... Kf4 {[%clk 0:00:19.5]} 50. Rxb5 {[%clk 0:00:10.9]} 50... Rh3 {[%clk
0:00:16.4]} 51. Rxh5 {[%clk 0:00:11.1]} 51... g3 {[%clk 0:00:16.9]} 52. Kb5
{[%clk 0:00:08.3]} 52... g2 {[%clk 0:00:16.4]} 53. Rg5 {[%clk 0:00:06.3]} 53...
Rg3 {[%clk 0:00:16.6]} 0-1

[Event "Early-Titled-Tuesday-Blitz-September-26-2023"]
[Site "Chess.com"]
[Date "2023.09.26"]
[Round "11"]
[White "artin10862"]
[Black "Agibileg"]
[Result "1-0"]
[WhiteElo "2887"]
[BlackElo "2683"]
[TimeControl "180+1"]
[EndTime "10:06:20 PDT"]
[Termination "artin10862 won by resignation"]

1. e4 {[%clk 0:02:55.7]} 1... e5 {[%clk 0:02:59.9]} 2. Nf3 {[%clk 0:02:56.1]}
2... Nc6 {[%clk 0:03:00.2]} 3. Bc4 {[%clk 0:02:55.5]} 3... Nf6 {[%clk
0:03:00.2]} 4. d3 {[%clk 0:02:55.7]} 4... Bc5 {[%clk 0:03:00.2]} 5. c3 {[%clk
0:02:55.6]} 5... d6 {[%clk 0:02:56.6]} 6. Bg5 {[%clk 0:02:54.8]} 6... h6 {[%clk
0:02:53.8]} 7. Bh4 {[%clk 0:02:54.7]} 7... g5 {[%clk 0:02:48.3]} 8. Bg3 {[%clk
0:02:54.6]} 8... a6 {[%clk 0:02:48.4]} 9. Bb3 {[%clk 0:02:34.2]} 9... Bg4 {[%clk
0:02:41.4]} 10. Nbd2 {[%clk 0:02:33.3]} 10... Nh5 {[%clk 0:02:18.5]} 11. Qc2
{[%clk 0:02:17.4]} 11... Qe7 {[%clk 0:02:10.7]} 12. Bd5 {[%clk 0:02:10]} 12...
Qd7 {[%clk 0:01:32.5]} 13. d4 {[%clk 0:01:41.3]} 13... exd4 {[%clk 0:01:29.8]}
14. cxd4 {[%clk 0:01:39.4]} 14... Bb4 {[%clk 0:01:16.9]} 15. O-O {[%clk
0:01:27.4]} 15... O-O {[%clk 0:01:01.6]} 16. Qd3 {[%clk 0:01:08.1]} 16... Ne7
{[%clk 0:00:47.2]} 17. Bxb7 {[%clk 0:00:48.5]} 17... Ra7 {[%clk 0:00:47.1]} 18.
Bxa6 {[%clk 0:00:47.7]} 18... Ng6 {[%clk 0:00:47.2]} 19. Bc4 {[%clk 0:00:43.8]}
19... Ngf4 {[%clk 0:00:32.8]} 20. Qe3 {[%clk 0:00:41.6]} 20... Bh3 {[%clk
0:00:24]} 21. Ne1 {[%clk 0:00:29]} 21... Re8 {[%clk 0:00:16.6]} 22. f3 {[%clk
0:00:19.5]} 22... Be6 {[%clk 0:00:09.8]} 23. Bxe6 {[%clk 0:00:19]} 23... Nxe6
{[%clk 0:00:10]} 24. Nd3 {[%clk 0:00:18.1]} 24... Ba5 {[%clk 0:00:09.2]} 25. Nc4
{[%clk 0:00:18]} 25... Rea8 {[%clk 0:00:03.5]} 26. Nxa5 {[%clk 0:00:15.3]} 26...
Rxa5 {[%clk 0:00:04.4]} 27. a3 {[%clk 0:00:15.5]} 27... Ra4 {[%clk 0:00:04.6]}
28. d5 {[%clk 0:00:15.9]} 28... Neg7 {[%clk 0:00:04.5]} 29. Be1 {[%clk
0:00:14.1]} 29... Ne8 {[%clk 0:00:03.3]} 30. Bc3 {[%clk 0:00:14.6]} 30... f5
{[%clk 0:00:03.5]} 31. e5 {[%clk 0:00:14.6]} 31... dxe5 {[%clk 0:00:03.2]} 32.
Nc5 {[%clk 0:00:13.4]} 32... Qxd5 {[%clk 0:00:02.7]} 33. Rad1 {[%clk 0:00:13.3]}
33... f4 {[%clk 0:00:01.5]} 34. Rxd5 {[%clk 0:00:08.4]} 34... fxe3 {[%clk
0:00:01.8]} 35. Nxa4 {[%clk 0:00:09.1]} 35... Rxa4 {[%clk 0:00:02.7]} 36. Rxe5
{[%clk 0:00:09.8]} 36... Nd6 {[%clk 0:00:03.2]} 37. Rxe3 {[%clk 0:00:09.7]}
37... Nf4 {[%clk 0:00:03.3]} 38. Rd1 {[%clk 0:00:10.1]} 38... Nf5 {[%clk
0:00:02.7]} 39. Re5 {[%clk 0:00:07.5]} 39... Nd6 {[%clk 0:00:02.3]} 40. Re7
{[%clk 0:00:07.6]} 40... Kf8 {[%clk 0:00:02.4]} 41. Rxc7 {[%clk 0:00:07.6]}
41... Ra6 {[%clk 0:00:01.8]} 42. Bb4 {[%clk 0:00:07.4]} 42... Ke8 {[%clk
0:00:02.2]} 43. Rxd6 {[%clk 0:00:07.5]} 43... Rxd6 {[%clk 0:00:02.5]} 44. Bxd6
{[%clk 0:00:08.4]} 44... Nd5 {[%clk 0:00:03.4]} 45. Rh7 {[%clk 0:00:08.1]} 1-0

[Event "Early-Titled-Tuesday-Blitz-September-26-2023"]
[Site "Chess.com"]
[Date "2023.09.26"]
[Round "11"]
[White "vugarrasulov"]
[Black "Msb2"]
[Result "0-1"]
[WhiteElo "2956"]
[BlackElo "3086"]
[TimeControl "180+1"]
[EndTime "10:06:22 PDT"]
[Termination "Msb2 won on time"]

1. d4 {[%clk 0:03:00.9]} 1... d5 {[%clk 0:02:59.9]} 2. c4 {[%clk 0:03:01.4]}
2... e6 {[%clk 0:03:00.5]} 3. Nf3 {[%clk 0:03:01.1]} 3... Nf6 {[%clk 0:03:00.6]}
4. g3 {[%clk 0:03:01.4]} 4... Nc6 {[%clk 0:03:00.5]} 5. cxd5 {[%clk 0:02:56.7]}
5... exd5 {[%clk 0:03:00.4]} 6. Nc3 {[%clk 0:02:57.3]} 6... h6 {[%clk
0:02:58.1]} 7. Bg2 {[%clk 0:02:57.5]} 7... Bd6 {[%clk 0:02:58.8]} 8. O-O {[%clk
0:02:57.7]} 8... O-O {[%clk 0:02:59.5]} 9. Bf4 {[%clk 0:02:55.9]} 9... Bxf4
{[%clk 0:02:59.4]} 10. gxf4 {[%clk 0:02:56.8]} 10... Ne7 {[%clk 0:03:00.3]} 11.
Ne5 {[%clk 0:02:55.6]} 11... Nf5 {[%clk 0:02:59.5]} 12. Kh1 {[%clk 0:02:42.6]}
12... c6 {[%clk 0:02:36.3]} 13. e3 {[%clk 0:02:41.9]} 13... Nd7 {[%clk
0:02:24.5]} 14. Rg1 {[%clk 0:02:35.9]} 14... Nxe5 {[%clk 0:02:22.5]} 15. fxe5
{[%clk 0:02:36.8]} 15... f6 {[%clk 0:02:21]} 16. exf6 {[%clk 0:02:03.9]} 16...
Qxf6 {[%clk 0:02:21.9]} 17. Qh5 {[%clk 0:01:56.4]} 17... Be6 {[%clk 0:02:17.6]}
18. Ne2 {[%clk 0:01:47]} 18... g6 {[%clk 0:01:48.3]} 19. Qf3 {[%clk 0:01:37.8]}
19... g5 {[%clk 0:01:43.8]} 20. Ng3 {[%clk 0:01:08.2]} 20... Nh4 {[%clk
0:01:32.1]} 21. Qxf6 {[%clk 0:01:06.9]} 21... Rxf6 {[%clk 0:01:33]} 22. f4
{[%clk 0:00:59.4]} 22... Kh7 {[%clk 0:01:30.7]} 23. fxg5 {[%clk 0:00:52.6]}
23... hxg5 {[%clk 0:01:31.6]} 24. Raf1 {[%clk 0:00:52.7]} 24... Raf8 {[%clk
0:01:31]} 25. Rxf6 {[%clk 0:00:52.8]} 25... Rxf6 {[%clk 0:01:31.9]} 26. Rf1
{[%clk 0:00:52]} 26... Kg6 {[%clk 0:01:20.4]} 27. Rxf6+ {[%clk 0:00:46.7]} 27...
Kxf6 {[%clk 0:01:21.3]} 28. Kg1 {[%clk 0:00:47.3]} 28... Bg4 {[%clk 0:00:59.7]}
29. Kf2 {[%clk 0:00:44.3]} 29... Ke6 {[%clk 0:01:00.2]} 30. Bf1 {[%clk
0:00:42.1]} 30... Kd6 {[%clk 0:00:56]} 31. Bd3 {[%clk 0:00:41.4]} 31... c5
{[%clk 0:00:54.3]} 32. dxc5+ {[%clk 0:00:33.3]} 32... Kxc5 {[%clk 0:00:55.2]}
33. Ne2 {[%clk 0:00:30.9]} 33... Nf3 {[%clk 0:00:45.2]} 34. Nc3 {[%clk
0:00:21.1]} 34... Ne5 {[%clk 0:00:42.4]} 35. Bf1 {[%clk 0:00:19]} 35... Bf5
{[%clk 0:00:41.1]} 36. b3 {[%clk 0:00:14.7]} 36... Ng4+ {[%clk 0:00:36.4]} 37.
Ke2 {[%clk 0:00:11.5]} 37... Nxh2 {[%clk 0:00:36.6]} 38. Bg2 {[%clk 0:00:12.2]}
38... Be6 {[%clk 0:00:36.4]} 39. Na4+ {[%clk 0:00:10.7]} 39... Kd6 {[%clk
0:00:36.5]} 40. Nc3 {[%clk 0:00:11.1]} 40... Ke5 {[%clk 0:00:37.1]} 41. Nb5
{[%clk 0:00:10.9]} 41... a6 {[%clk 0:00:34.7]} 42. Nc7 {[%clk 0:00:11.4]} 42...
Bf7 {[%clk 0:00:31]} 43. Na8 {[%clk 0:00:09.7]} 43... Bh5+ {[%clk 0:00:30.5]}
44. Kd3 {[%clk 0:00:05.9]} 44... Bf3 {[%clk 0:00:29.4]} 45. Bxf3 {[%clk
0:00:05.5]} 45... Nxf3 {[%clk 0:00:30.3]} 46. Ke2 {[%clk 0:00:04.6]} 46... g4
{[%clk 0:00:30.1]} 47. Nb6 {[%clk 0:00:05.3]} 47... Ke4 {[%clk 0:00:29.3]} 48.
Nd7 {[%clk 0:00:05.4]} 48... d4 {[%clk 0:00:18]} 49. Nc5+ {[%clk 0:00:05.5]}
49... Kd5 {[%clk 0:00:18.6]} 50. Nxb7 {[%clk 0:00:06.3]} 50... d3+ {[%clk
0:00:18.5]} 51. Kf2 {[%clk 0:00:02.3]} 51... d2 {[%clk 0:00:18.7]} 52. Ke2
{[%clk 0:00:03]} 52... g3 {[%clk 0:00:19.3]} 53. e4+ {[%clk 0:00:03.2]} 53...
Ke5 {[%clk 0:00:15.5]} 54. Nc5 {[%clk 0:00:03.2]} 54... g2 {[%clk 0:00:16.1]}
55. Nd3+ {[%clk 0:00:03.7]} 55... Kd4 {[%clk 0:00:16.1]} 0-1

[Event "Early-Titled-Tuesday-Blitz-September-26-2023"]
[Site "Chess.com"]
[Date "2023.09.26"]
[Round "11"]
[White "esrosenberg"]
[Black "Alina_Gumerovna"]
[Result "0-1"]
[WhiteElo "2369"]
[BlackElo "2198"]
[TimeControl "180+1"]
[EndTime "10:06:25 PDT"]
[Termination "Alina_Gumerovna won by resignation"]

1. Nf3 {[%clk 0:03:00.9]} 1... d5 {[%clk 0:02:59.4]} 2. d4 {[%clk 0:03:00.8]}
2... Nf6 {[%clk 0:02:59.3]} 3. c3 {[%clk 0:03:00.9]} 3... e6 {[%clk 0:02:59.6]}
4. Bg5 {[%clk 0:03:00.4]} 4... Be7 {[%clk 0:02:59.8]} 5. Nbd2 {[%clk 0:03:00]}
5... Nbd7 {[%clk 0:03:00]} 6. e3 {[%clk 0:02:58.5]} 6... O-O {[%clk 0:03:00.3]}
7. Bd3 {[%clk 0:02:58.4]} 7... h6 {[%clk 0:02:54.7]} 8. Bh4 {[%clk 0:02:57.8]}
8... b6 {[%clk 0:02:55]} 9. Qe2 {[%clk 0:02:57]} 9... Bb7 {[%clk 0:02:54.8]} 10.
O-O {[%clk 0:02:55.7]} 10... c5 {[%clk 0:02:54.1]} 11. a4 {[%clk 0:02:51.4]}
11... Ne4 {[%clk 0:02:51.5]} 12. Bxe7 {[%clk 0:02:47.8]} 12... Qxe7 {[%clk
0:02:52.4]} 13. a5 {[%clk 0:02:47.8]} 13... f5 {[%clk 0:02:40.4]} 14. a6 {[%clk
0:02:43.2]} 14... Bc6 {[%clk 0:02:40.3]} 15. Rfc1 {[%clk 0:02:35.6]} 15... g5
{[%clk 0:02:24.1]} 16. b4 {[%clk 0:02:34.8]} 16... g4 {[%clk 0:02:22]} 17. Ne5
{[%clk 0:02:29.7]} 17... Nxe5 {[%clk 0:02:21.8]} 18. dxe5 {[%clk 0:02:30.1]}
18... Nxd2 {[%clk 0:02:20.5]} 19. Qxd2 {[%clk 0:02:29.9]} 19... c4 {[%clk
0:02:20.7]} 20. Bc2 {[%clk 0:02:24.1]} 20... Qg5 {[%clk 0:02:04.5]} 21. Qd4
{[%clk 0:02:22.7]} 21... f4 {[%clk 0:01:59.3]} 22. exf4 {[%clk 0:02:02.4]} 22...
Qxf4 {[%clk 0:02:00.2]} 23. Qxf4 {[%clk 0:01:36.1]} 23... Rxf4 {[%clk
0:02:00.2]} 24. Re1 {[%clk 0:01:37]} 24... Raf8 {[%clk 0:01:55.9]} 25. Re2
{[%clk 0:01:37.1]} 25... d4 {[%clk 0:01:43.8]} 26. cxd4 {[%clk 0:01:33.5]} 26...
Rxd4 {[%clk 0:01:44.7]} 27. Rd1 {[%clk 0:01:06.2]} 27... Rfd8 {[%clk 0:01:43.4]}
28. Rxd4 {[%clk 0:01:02.7]} 28... Rxd4 {[%clk 0:01:44.3]} 29. h3 {[%clk
0:01:00]} 29... gxh3 {[%clk 0:01:44.7]} 30. gxh3 {[%clk 0:01:00.3]} 30... Bb5
{[%clk 0:01:04.8]} 31. Re3 {[%clk 0:00:58.4]} 31... Bxa6 {[%clk 0:01:04.6]} 32.
Ra3 {[%clk 0:00:56.4]} 32... Bb5 {[%clk 0:01:01.2]} 33. Rxa7 {[%clk 0:00:56.5]}
33... Rd2 {[%clk 0:00:58.2]} 34. Bh7+ {[%clk 0:00:55.1]} 34... Kh8 {[%clk
0:00:58]} 35. Bg6 {[%clk 0:00:47.1]} 35... Bd7 {[%clk 0:00:23.2]} 36. b5 {[%clk
0:00:39.9]} 36... Bxb5 {[%clk 0:00:20.3]} 37. Rb7 {[%clk 0:00:40.3]} 37... Rd5
{[%clk 0:00:16.1]} 38. Rxb6 {[%clk 0:00:37]} 38... Rxe5 {[%clk 0:00:16.2]} 39.
h4 {[%clk 0:00:37.3]} 39... c3 {[%clk 0:00:15]} 40. Rb8+ {[%clk 0:00:36]} 40...
Kg7 {[%clk 0:00:14.8]} 41. h5 {[%clk 0:00:36.2]} 41... Rc5 {[%clk 0:00:13.8]}
42. Bc2 {[%clk 0:00:30.9]} 42... Bc4 {[%clk 0:00:13.1]} 43. Rb4 {[%clk
0:00:28.4]} 43... Bd5 {[%clk 0:00:13]} 44. Rg4+ {[%clk 0:00:27.3]} 44... Kf6
{[%clk 0:00:13.3]} 45. Rg6+ {[%clk 0:00:26.9]} 45... Ke5 {[%clk 0:00:13.7]} 46.
Rxh6 {[%clk 0:00:26.5]} 46... Be4 {[%clk 0:00:14.1]} 47. Bxe4 {[%clk 0:00:22.3]}
47... Kxe4 {[%clk 0:00:15]} 48. Rxe6+ {[%clk 0:00:22.7]} 48... Kd3 {[%clk
0:00:15.6]} 49. Re3+ {[%clk 0:00:22.7]} 49... Kd2 {[%clk 0:00:15.6]} 50. Rxc3
{[%clk 0:00:11.2]} 50... Kxc3 {[%clk 0:00:16.5]} 51. Kg2 {[%clk 0:00:10.3]}
51... Kd4 {[%clk 0:00:16.1]} 52. Kf3 {[%clk 0:00:09.6]} 52... Rxh5 {[%clk
0:00:15.7]} 53. Kf4 {[%clk 0:00:10.3]} 53... Kd5 {[%clk 0:00:13.5]} 54. f3
{[%clk 0:00:09.6]} 54... Ke6 {[%clk 0:00:13.4]} 55. Kg4 {[%clk 0:00:10.2]} 55...
Rf5 {[%clk 0:00:13.8]} 56. f4 {[%clk 0:00:09.8]} 56... Kf6 {[%clk 0:00:14.1]}
0-1

[Event "Early-Titled-Tuesday-Blitz-September-26-2023"]
[Site "Chess.com"]
[Date "2023.09.26"]
[Round "11"]
[White "Bilan_Danila"]
[Black "Antik5"]
[Result "0-1"]
[WhiteElo "2516"]
[BlackElo "2416"]
[TimeControl "180+1"]
[EndTime "10:06:29 PDT"]
[Termination "Antik5 won by resignation"]

1. d4 {[%clk 0:03:00.9]} 1... Nf6 {[%clk 0:03:00]} 2. Nf3 {[%clk 0:03:01.3]}
2... e6 {[%clk 0:03:00.4]} 3. g3 {[%clk 0:03:01.4]} 3... b5 {[%clk 0:03:01.1]}
4. Bg2 {[%clk 0:03:02.3]} 4... Bb7 {[%clk 0:03:01.6]} 5. O-O {[%clk 0:03:03.2]}
5... Be7 {[%clk 0:03:02]} 6. a4 {[%clk 0:03:02.6]} 6... b4 {[%clk 0:03:01.7]} 7.
c4 {[%clk 0:03:03.2]} 7... O-O {[%clk 0:02:58.3]} 8. b3 {[%clk 0:03:01.9]} 8...
d6 {[%clk 0:02:56.3]} 9. Bb2 {[%clk 0:03:01.8]} 9... c5 {[%clk 0:02:52.1]} 10.
d5 {[%clk 0:03:01.3]} 10... e5 {[%clk 0:02:51.7]} 11. Nbd2 {[%clk 0:03:00.1]}
11... Nbd7 {[%clk 0:02:40]} 12. e4 {[%clk 0:03:00.4]} 12... g6 {[%clk
0:02:39.6]} 13. Ne1 {[%clk 0:03:00.1]} 13... Nh5 {[%clk 0:02:37.7]} 14. Nd3
{[%clk 0:02:58.5]} 14... Bc8 {[%clk 0:02:17.9]} 15. f4 {[%clk 0:02:54.6]} 15...
exf4 {[%clk 0:02:15.2]} 16. gxf4 {[%clk 0:02:55]} 16... Bf6 {[%clk 0:02:13.9]}
17. e5 {[%clk 0:02:48.9]} 17... Bg7 {[%clk 0:02:02.8]} 18. Ne4 {[%clk
0:02:22.5]} 18... Qh4 {[%clk 0:01:51.7]} 19. Nxd6 {[%clk 0:02:11.8]} 19... f5
{[%clk 0:01:35.1]} 20. Qf3 {[%clk 0:01:44.4]} 20... Ba6 {[%clk 0:01:29.5]} 21.
Nb5 {[%clk 0:01:36.8]} 21... Bb7 {[%clk 0:01:18.9]} 22. Nc7 {[%clk 0:01:34.9]}
22... Rac8 {[%clk 0:01:11.8]} 23. Ne6 {[%clk 0:01:33.9]} 23... Rfe8 {[%clk
0:01:02.5]} 24. Nxg7 {[%clk 0:01:34]} 24... Nxg7 {[%clk 0:01:03.4]} 25. Qe3
{[%clk 0:01:22.2]} 25... Ba8 {[%clk 0:00:48.8]} 26. Rf3 {[%clk 0:01:04.3]} 26...
Qd8 {[%clk 0:00:40.5]} 27. Rd1 {[%clk 0:00:57.3]} 27... Nf6 {[%clk 0:00:38.7]}
28. Rff1 {[%clk 0:00:46.7]} 28... Ng4 {[%clk 0:00:35.5]} 29. Qf3 {[%clk
0:00:37.4]} 29... Qh4 {[%clk 0:00:21.7]} 30. h3 {[%clk 0:00:37.5]} 30... Nh6
{[%clk 0:00:21.4]} 31. e6 {[%clk 0:00:34.1]} 31... Nxe6 {[%clk 0:00:20.4]} 32.
Qf2 {[%clk 0:00:28.5]} 32... Qxf2+ {[%clk 0:00:18.6]} 33. Kxf2 {[%clk
0:00:29.1]} 33... Nf8 {[%clk 0:00:14]} 34. Rfe1 {[%clk 0:00:28.1]} 34... Nf7
{[%clk 0:00:13.7]} 35. Ne5 {[%clk 0:00:27.6]} 35... Nd6 {[%clk 0:00:10.9]} 36.
Nc6 {[%clk 0:00:19.2]} 36... Bxc6 {[%clk 0:00:08.5]} 37. dxc6 {[%clk 0:00:18.7]}
37... Ne4+ {[%clk 0:00:08.6]} 38. Bxe4 {[%clk 0:00:17.1]} 38... fxe4 {[%clk
0:00:08.8]} 39. Rd6 {[%clk 0:00:09.5]} 39... Re6 {[%clk 0:00:09]} 40. Rxe6
{[%clk 0:00:09.6]} 40... Nxe6 {[%clk 0:00:09.9]} 41. Rxe4 {[%clk 0:00:10.1]}
41... Rxc6 {[%clk 0:00:10.4]} 42. Ke3 {[%clk 0:00:07.1]} 42... Kf7 {[%clk
0:00:10.6]} 43. Re5 {[%clk 0:00:07.1]} 43... Ng7 {[%clk 0:00:09.5]} 44. Rd5
{[%clk 0:00:06.3]} 44... Nf5+ {[%clk 0:00:08.3]} 45. Kf3 {[%clk 0:00:06.9]}
45... Ke6 {[%clk 0:00:05.3]} 46. Be5 {[%clk 0:00:07.1]} 46... Rc8 {[%clk
0:00:04.3]} 47. Ke4 {[%clk 0:00:04.6]} 47... Ng3+ {[%clk 0:00:03.8]} 48. Kf3
{[%clk 0:00:05.2]} 48... Nf5 {[%clk 0:00:04.3]} 49. a5 {[%clk 0:00:05.5]} 49...
Nh4+ {[%clk 0:00:03.4]} 50. Kg4 {[%clk 0:00:05.6]} 50... Nf5 {[%clk 0:00:03.9]}
51. a6 {[%clk 0:00:04.6]} 51... Ne3+ {[%clk 0:00:03.9]} 52. Kg5 {[%clk
0:00:02.6]} 52... Nxd5 {[%clk 0:00:04.4]} 53. cxd5+ {[%clk 0:00:03.4]} 53...
Kxd5 {[%clk 0:00:05.1]} 0-1